bitfinex/quotes_ETHUSD_20241022
["timestamp","ask_amount","ask_price","bid_price","bid_amount"]
[1729606404590,3.79884,2632.4,2631.6,3.79987]
[1729606404888,3.79852,2632.6,2632.0,3.7993]
[1729606405113,3.7983,2632.8,2632.1,0.7763]
[1729606405251,4.32874733,2633.4,2632.1,0.7763]
[1729606405252,3.79845,2632.7,2632.1,0.7763]
[1729606405451,7.59636,2632.9,2632.2,3.79907]
[1729606405653,7.59636,2632.9,2632.2,3.79901]
[1729606405654,3.79815,2632.9,2632.2,3.79901]
[1729606405853,3.79774,2633.2,2632.6,3.79844]
[1729606406103,3.79741,2633.4,2632.5,3.79867]
[1729606406396,3.79779,2633.2,2632.5,4.57486]
[1729606406595,3.79794,2633.1,2632.5,4.57486]
[1729606406865,3.79779,2633.2,2632.6,3.79842]
[1729606407164,3.79745,2633.4,2632.7,3.79838]
[1729606407365,3.79745,2633.4,2632.8,3.79816]
[1729606407689,3.79756,2633.3,2632.7,7.59667]
[1729606407986,3.79745,2633.4,2632.7,3.79829]
[1729606408192,3.79745,2633.4,2632.8,3.7982]
[1729606408362,3.79745,2633.4,2632.7,3.79829]
[1729606408363,3.79745,2633.4,2632.9,3.79806]
[1729606408568,3.79745,2633.4,2632.8,3.79823]
[1729606408871,3.79745,2633.4,2632.7,4.3394618]
[1729606408872,3.79758,2633.3,2632.7,4.3394618]
[1729606409178,3.79745,2633.4,2632.8,0.04874548]
[1729606409379,4.59349,2633.6,2632.9,3.79801]
[1729606409583,3.79746,2633.4,2632.8,3.84695548]
[1729606409785,7.59494,2633.4,2633.0,0.04858628]
[1729606409981,7.59492,2633.4,2632.8,3.79821]
[1729606410185,3.79754,2633.3,2633.1,0.04850669]
[1729606410354,3.79766,2633.2,2632.7,3.7983]
[1729606411002,3.7978,2633.1,2632.6,3.79851]
[1729606411314,7.59493,2633.4,2632.8,3.79816]
[1729606411588,3.79754,2633.3,2632.8,3.79816]
[1729606411803,0.7963,2633.6,2632.5,4.57487]
[1729606411804,3.79768,2633.2,2632.5,4.57487]
[1729606411957,3.79796,2633.0,2632.5,4.57487]
[1729606412160,5.12504733,2633.6,2632.5,0.7763]
[1729606412387,3.7979,2633.1,2632.5,0.7763]
[1729606412598,3.7979,2633.1,2632.6,3.79849]
[1729606412779,3.79766,2633.2,2632.7,3.7983]
[1729606412993,3.79766,2633.2,2632.6,7.59686]
[1729606413200,3.79766,2633.2,2632.6,3.79842]
[1729606413616,7.59492,2633.4,2632.6,3.79842]
[1729606413917,3.79744,2633.4,2632.8,3.79821]
[1729606414424,4.59347,2633.6,2633.1,0.7726]
[1729606414425,3.79716,2633.6,2633.1,0.7726]
[1729606415501,3.79703,2633.7,2633.2,3.79763]
[1729606415817,3.79703,2633.7,2633.1,0.7726]
[1729606415818,3.79722,2633.5,2633.1,0.7726]
[1729606416201,4.59446,2634.0,2632.6,4.32874733]
[1729606416202,3.79755,2633.3,2632.7,0.7993]
[1729606416576,7.59514,2633.3,2632.7,0.7993]
[1729606416775,3.79776,2633.2,2632.7,0.7993]
[1729606417332,3.79766,2633.2,2632.7,4.59761]
[1729606417680,3.79766,2633.2,2632.7,0.7993]
[1729606418210,3.79803,2633.0,2632.4,4.6012]
[1729606418422,3.79767,2633.2,2632.6,3.79843]
[1729606418709,3.79795,2633.0,2632.5,3.79867]
[1729606418921,3.79801,2633.0,2632.4,4.6013]
[1729606419316,3.79801,2633.0,2632.4,4.67713822]
[1729606419520,3.79801,2633.0,2632.5,3.79859]
[1729606419901,3.79781,2633.1,2632.4,5.51866933]
[1729606420096,3.79781,2633.1,2632.5,3.79867]
[1729606420302,3.79776,2633.2,2632.4,1.71999933]
[1729606420622,3.79776,2633.2,2632.7,3.79837]
[1729606420931,7.59551,2633.2,2632.6,3.7984]
[1729606421084,3.79775,2633.2,2632.6,3.7984]
[1729606421281,3.79748,2633.4,2632.7,3.79831]
[1729606421626,3.79748,2633.4,2632.7,3.79827]
[1729606421926,3.79752,2633.3,2632.8,3.7982]
[1729606422084,3.79734,2633.5,2632.9,3.79801]
[1729606422289,3.79722,2633.5,2632.9,3.79809]
[1729606422600,3.79738,2633.4,2632.9,3.79809]
[1729606422799,3.79738,2633.4,2632.9,7.59607]
[1729606422989,0.794,2633.6,2632.8,3.79823]
[1729606422990,3.79758,2633.3,2632.8,3.79823]
[1729606423194,7.59483,2633.4,2632.9,3.79808]
[1729606423827,3.79751,2633.3,2633.0,0.04798247]
[1729606424038,3.79751,2633.3,2632.7,7.59656]
[1729606424039,3.79751,2633.3,2632.8,3.79819]
[1729606424279,3.79766,2633.2,2633.1,0.04789498]
[1729606424591,3.7983,2632.8,2632.4,4.60124]
[1729606424738,3.79816,2632.9,2632.4,4.60122]
[1729606424938,3.79796,2633.0,2632.6,3.79852]
[1729606425343,3.79796,2633.0,2632.5,3.7986]
[1729606425561,3.79796,2633.0,2632.5,3.79867]
[1729606425773,3.79796,2633.0,2632.6,3.79852]
[1729606426088,3.79781,2633.1,2632.6,3.79852]
[1729606426540,7.59552,2633.2,2632.7,3.79834]
[1729606426744,3.79745,2633.4,2632.8,3.79822]
[1729606427086,4.59681,2634.2,2633.3,0.7607]
[1729606427386,4.59629,2634.5,2633.9,3.79655]
[1729606427691,3.7951,2635.0,2633.9,0.7607]
[1729606427692,3.79521,2634.9,2633.9,0.7607]
[1729606427895,0.8005,2635.0,2633.9,4.55732]
[1729606427896,3.79605,2634.4,2633.9,4.55732]
[1729606428108,3.79603,2634.4,2633.9,4.55727]
[1729606428403,3.79669,2633.9,2633.4,3.79735]
[1729606428554,7.59346,2633.9,2633.4,3.79735]
[1729606428904,3.79648,2634.1,2633.5,3.79715]
[1729606429108,0.8307,2634.7,2633.5,5.17186185]
[1729606429404,3.79588,2634.5,2633.8,3.79669]
[1729606429613,3.79587,2634.5,2634.0,3.79647]
[1729606429907,3.79602,2634.4,2633.8,3.79673]
[1729606430127,3.79608,2634.3,2633.8,3.79669]
[1729606430272,3.79602,2634.4,2633.9,4.176229]
[1729606430472,0.8307,2634.7,2633.9,4.176229]
[1729606430473,3.79578,2634.5,2633.9,4.176229]
[1729606430802,4.62622,2634.7,2633.9,0.379669]
[1729606430969,4.62622,2634.7,2633.6,0.7619]
[1729606430970,3.79621,2634.2,2633.6,4.55898]
[1729606431176,3.79644,2634.1,2633.6,0.7619]
[1729606431572,3.79657,2634.0,2633.6,0.7619]
[1729606431771,3.79705,2633.7,2633.2,0.7803]
[1729606432214,4.61998,2634.5,2633.2,0.7803]
[1729606432215,3.79739,2633.4,2633.2,0.7803]
[1729606432373,3.79715,2633.6,2633.2,0.7803]
[1729606432698,3.79745,2633.4,2632.9,0.7746]
[1729606432859,3.79725,2633.5,2633.0,3.79787]
[1729606433057,3.79701,2633.7,2633.1,3.79773]
[1729606433263,3.79719,2633.6,2633.0,3.79786]
[1729606433461,3.79719,2633.6,2632.9,5.02997]
[1729606433462,3.79732,2633.5,2632.9,5.02997]
[1729606433900,0.8242,2633.8,2632.9,0.7746]
[1729606433901,3.79762,2633.3,2632.9,0.7746]
[1729606434101,3.79775,2633.2,2632.9,0.7746]
[1729606434304,3.79762,2633.3,2632.9,0.7746]
[1729606434510,3.79767,2633.2,2632.9,0.7746]
[1729606434878,3.79762,2633.3,2632.9,0.7746]
[1729606435407,3.79766,2633.2,2632.7,3.79824]
[1729606435617,3.79766,2633.2,2632.6,0.8229]
[1729606435788,3.79766,2633.2,2632.7,3.79837]
[1729606436115,3.79747,2633.4,2632.7,3.79837]
[1729606436116,3.79747,2633.4,2632.8,3.79819]
[1729606436411,3.79759,2633.3,2632.8,3.79819]
[1729606436578,3.79747,2633.4,2632.9,3.79807]
[1729606437185,4.62107,2633.8,2632.9,3.79807]
[1729606437186,3.79688,2633.8,2633.0,0.07595504]
[1729606437520,3.79629,2634.2,2633.6,3.79706]
[1729606437521,3.79636,2634.1,2633.6,3.79706]
[1729606437682,3.79593,2634.4,2633.3,3.79751]
[1729606437864,3.79699,2633.7,2633.2,3.79762]
[1729606438270,3.79672,2633.9,2633.4,3.79724]
[1729606438516,3.79642,2634.1,2633.6,3.79707]
[1729606438716,3.79642,2634.1,2633.6,7.59408]
[1729606438871,3.79642,2634.1,2633.6,3.79701]
[1729606439260,3.79644,2634.1,2633.7,0.04713361]
[1729606439418,3.79644,2634.1,2633.5,3.79714]
[1729606439419,7.59289,2634.1,2633.5,3.79714]
[1729606439571,7.59289,2634.1,2633.8,0.04705406]
[1729606439766,3.79644,2634.1,2633.6,3.79707]
[1729606439971,3.79644,2634.1,2633.7,0.04713361]
[1729606439972,7.59291,2634.1,2633.7,0.04713361]
[1729606440167,7.59288,2634.1,2633.7,0.04713361]
[1729606440369,4.32874733,2634.3,2632.9,3.79799]
[1729606440567,4.32874733,2634.3,2632.6,8.58933433]
[1729606440568,3.79733,2633.5,2633.1,0.80440064]
[1729606440818,3.7968,2633.8,2633.1,0.80440064]
[1729606440819,7.59499,2633.4,2633.1,0.80440064]
[1729606440974,3.79749,2633.4,2633.1,0.80440064]
[1729606441685,0.8241,2633.9,2633.1,0.80440064]
[1729606441872,3.79704,2633.7,2633.1,0.80440064]
[1729606442414,3.79724,2633.5,2633.1,0.80440064]
[1729606442800,3.79695,2633.7,2633.1,4.60218064]
[1729606443001,3.79695,2633.7,2633.1,4.60212064]
[1729606443218,3.79695,2633.7,2633.1,0.80440064]
[1729606443386,3.79711,2633.6,2633.1,0.80440064]
[1729606443588,3.79691,2633.8,2633.1,4.60213064]
[1729606443774,3.79679,2633.9,2633.2,3.79764]
[1729606444108,3.79686,2633.8,2633.3,0.0474913]
[1729606444335,3.79715,2633.6,2633.3,0.0474913]
[1729606444641,3.79724,2633.5,2633.1,0.7569]
[1729606445045,3.79744,2633.4,2632.8,4.6216]
[1729606445200,3.79744,2633.4,2632.8,5.58576594]
[1729606445541,3.79744,2633.4,2632.8,5.5098107]
[1729606445899,0.7743,2633.7,2632.8,5.5098107]
[1729606445900,0.7743,2633.7,2632.9,3.79803]
[1729606446104,3.79732,2633.5,2632.9,3.79803]
[1729606446302,3.79749,2633.4,2632.8,5.5097607]
[1729606447072,3.79749,2633.4,2632.8,4.62155]
[1729606447299,5.10304733,2633.7,2632.4,0.7876]
[1729606447577,5.10304733,2633.7,2632.5,3.7986]
[1729606447769,3.79796,2633.0,2632.4,4.5864]
[1729606447972,3.79796,2633.0,2632.4,5.85779973]
[1729606448179,7.596,2633.0,2632.4,5.85779973]
[1729606448333,3.79796,2633.0,2632.4,5.85779973]
[1729606448679,3.79708,2633.6,2632.5,0.07596502]
[1729606448832,3.79687,2633.8,2633.0,0.8283]
[1729606449030,0.02,2634.4,2633.0,0.8283]
[1729606449031,3.79672,2633.9,2633.3,3.79745]
[1729606449240,3.79671,2633.9,2633.4,0.379745]
[1729606449444,4.62542,2634.5,2633.7,3.79686]
[1729606449645,3.79599,2634.4,2633.8,3.79669]
[1729606449873,3.79599,2634.4,2633.7,3.8727841]
[1729606450075,3.79599,2634.4,2633.7,3.79685]
[1729606450374,3.79599,2634.4,2633.7,4.69230973]
[1729606450621,4.6249,2634.8,2633.6,0.829]
[1729606450622,3.79578,2634.5,2633.6,0.829]
[1729606450750,3.79651,2634.0,2633.6,0.829]
[1729606451575,3.79657,2634.0,2633.6,0.829]
[1729606452182,3.79676,2633.9,2633.6,0.829]
[1729606452472,3.79657,2634.0,2633.3,4.60869]
[1729606452473,3.79681,2633.8,2633.3,4.60869]
[1729606452676,3.79657,2634.0,2633.3,4.60869]
[1729606452677,3.79653,2634.0,2633.4,3.79735]
[1729606452849,3.79636,2634.1,2633.5,3.79721]
[1729606453045,3.79616,2634.3,2633.6,3.87291741]
[1729606453254,7.59204,2634.4,2633.8,3.79675]
[1729606453482,3.79601,2634.4,2633.6,3.797]
[1729606453784,3.79601,2634.4,2633.9,0.7887]
[1729606453941,3.79601,2634.4,2633.9,4.58534]
[1729606454132,3.79601,2634.4,2634.0,0.04669787]
[1729606454377,3.79618,2634.3,2634.0,0.04669787]
[1729606455189,3.79601,2634.4,2634.0,0.04669787]
[1729606455814,3.79616,2634.3,2634.0,0.04669787]
[1729606456186,7.59207,2634.4,2634.0,0.04669787]
[1729606456399,3.79623,2634.2,2634.0,0.04669787]
[1729606456603,3.79629,2634.2,2634.0,0.04669787]
[1729606456822,7.59259,2634.2,2634.0,0.04669787]
[1729606457029,3.79629,2634.2,2633.7,3.79693]
[1729606457622,3.79603,2634.4,2633.8,3.79679]
[1729606457918,0.7758,2634.9,2633.9,0.07592868]
[1729606458140,3.80407,2635.7,2634.7,3.79541]
[1729606458141,3.79482,2635.2,2634.7,3.79541]
[1729606458325,4.57032,2635.4,2634.8,3.79527]
[1729606458631,4.57032,2635.4,2634.7,4.5711]
[1729606458632,4.57031,2635.4,2634.7,0.7757]
[1729606458918,4.57031,2635.4,2634.7,4.5711]
[1729606459127,4.57031,2635.4,2634.9,3.79512]
[1729606459440,4.57031,2635.4,2634.7,4.5711]
[1729606459637,3.79471,2635.3,2634.7,4.5711]
[1729606460135,3.79478,2635.2,2634.7,0.7757]
[1729606460305,3.79522,2634.9,2634.7,0.7757]
[1729606460505,3.7953,2634.9,2634.4,0.7938]
[1729606460721,3.7953,2634.9,2634.1,4.32874733]
[1729606460722,3.79561,2634.7,2634.1,4.56156]
[1729606460927,3.79566,2634.6,2634.1,4.56156]
[1729606461805,3.79561,2634.7,2634.1,4.56147]
[1729606462026,3.7956,2634.7,2634.1,4.56156]
[1729606462221,3.79531,2634.9,2634.1,8.35782]
[1729606462552,3.79562,2634.7,2634.1,4.56146]
[1729606462759,3.79571,2634.6,2634.1,4.56146]
[1729606463112,3.79562,2634.7,2634.1,0.7652]
[1729606463322,3.79565,2634.6,2634.1,4.56148]
[1729606463517,3.79562,2634.7,2634.1,8.35773]
[1729606463813,0.8304,2634.8,2634.1,0.7652]
[1729606464019,3.79549,2634.7,2633.8,0.8023]
[1729606464319,3.79653,2634.0,2633.8,0.8023]
[1729606464657,3.79653,2634.0,2633.5,11.40915]
[1729606464658,3.79653,2634.0,2633.5,4.59945]
[1729606465042,3.79678,2633.9,2633.5,0.8023]
[1729606465215,0.7748,2634.1,2633.5,3.79713]
[1729606465216,3.79651,2634.0,2633.5,3.79713]
[1729606465410,3.79641,2634.1,2633.6,3.79707]
[1729606465752,3.79615,2634.3,2633.7,3.79686]
[1729606466127,8.3668,2634.4,2633.8,3.7967]
[1729606466337,3.79607,2634.3,2633.8,4.5962]
[1729606466653,3.79608,2634.3,2633.8,4.59629]
[1729606467015,0.7748,2634.4,2633.8,0.7995]
[1729606467226,3.79614,2634.3,2633.8,0.7995]
[1729606467427,3.79637,2634.1,2633.8,0.7995]
[1729606468415,3.79681,2633.8,2633.5,0.7995]
[1729606468929,3.79681,2633.8,2633.6,0.04677164]
[1729606469792,3.79661,2634.0,2633.6,0.04677164]
[1729606469938,7.59202,2634.4,2633.6,0.5111328]
[1729606470140,3.79596,2634.4,2633.7,3.79686]
[1729606470651,3.79619,2634.3,2633.8,0.04664407]
[1729606470850,3.79619,2634.3,2633.8,3.84336407]
[1729606471178,3.79618,2634.3,2633.8,4.61477155]
[1729606471393,3.79639,2634.1,2633.9,0.04656453]
[1729606471675,3.79693,2633.8,2633.5,0.7995]
[1729606471878,3.79578,2634.5,2633.0,3.79784]
[1729606471879,3.79665,2633.9,2633.3,0.7838]
[1729606472080,3.7973,2633.5,2633.3,0.7838]
[1729606472437,0.7745,2634.0,2632.6,3.79851]
[1729606472438,4.57103,2634.0,2632.6,5.11254733]
[1729606472638,5.10324733,2634.0,2632.7,3.79831]
[1729606472870,3.79773,2633.2,2632.7,3.79838]
[1729606473042,3.79773,2633.2,2632.7,4.64404908]
[1729606473265,3.79765,2633.3,2632.7,8.44234908]
[1729606473454,3.79765,2633.3,2632.8,3.79815]
[1729606473909,3.79765,2633.3,2632.8,3.79809]
[1729606474059,3.79753,2633.3,2632.8,7.59635]
[1729606474402,3.79741,2633.4,2632.9,4.64222191]
[1729606474892,3.79746,2633.4,2632.9,4.64225191]
[1729606475265,3.79751,2633.4,2632.8,7.59631]
[1729606475469,4.57106,2634.0,2633.0,3.79792]
[1729606475677,3.79686,2633.8,2633.2,3.79762]
[1729606476076,3.79706,2633.7,2633.2,3.79762]
[1729606476291,3.79686,2633.8,2633.3,3.79743]
[1729606476502,3.79666,2633.9,2633.3,3.87341576]
[1729606476792,3.79692,2633.8,2633.3,3.79747]
[1729606476992,3.79692,2633.8,2633.3,7.5949]
[1729606477199,3.79692,2633.8,2633.3,3.79743]
[1729606477802,3.79676,2633.9,2633.3,3.79743]
[1729606477978,3.79676,2633.9,2633.3,7.59485]
[1729606478171,3.79691,2633.8,2633.3,7.59482]
[1729606478524,3.79691,2633.8,2633.4,3.79734]
[1729606479175,3.79695,2633.7,2633.3,3.7974]
[1729606479599,7.59383,2633.8,2633.1,3.79766]
[1729606479804,3.79695,2633.7,2633.2,3.79758]
[1729606480309,3.79711,2633.6,2633.1,3.79766]
[1729606480710,3.79711,2633.6,2633.1,7.59539]
[1729606480887,3.79694,2633.7,2633.2,3.79755]
[1729606481284,3.79689,2633.8,2633.1,3.87360773]
[1729606481482,4.5711,2634.0,2633.3,3.79741]
[1729606481683,2.63905139,2636.2,2633.3,3.79741]
[1729606481684,3.79633,2634.2,2633.8,3.79678]
[1729606481920,3.79668,2633.9,2633.4,3.79725]
[1729606482210,3.79668,2633.9,2633.3,0.8269]
[1729606482411,3.79668,2633.9,2633.4,3.79734]
[1729606482709,3.79643,2634.1,2633.5,3.79711]
[1729606482924,0.7503,2634.3,2633.9,3.79656]
[1729606483129,3.79601,2634.4,2633.9,3.79656]
[1729606483410,3.79623,2634.2,2633.7,3.79684]
[1729606483584,3.79601,2634.4,2633.9,3.79663]
[1729606483585,7.59202,2634.4,2633.9,3.79663]
[1729606483789,3.79618,2634.3,2634.0,0.04675305]
[1729606484109,3.79618,2634.3,2633.8,3.79669]
[1729606484580,3.79618,2634.3,2633.9,0.04683259]
[1729606484787,3.79618,2634.3,2633.9,3.79664]
[1729606484974,3.79624,2634.2,2634.0,0.04675305]
[1729606485177,3.79624,2634.2,2633.8,3.79679]
[1729606485483,3.79624,2634.2,2633.9,0.04683259]
[1729606485989,3.7965,2634.0,2633.9,0.04683259]
[1729606486313,3.79578,2634.5,2633.3,0.8269]
[1729606486624,3.79672,2633.9,2633.4,3.79728]
[1729606486912,3.79672,2633.9,2633.4,3.79727]
[1729606487218,3.79672,2633.9,2633.4,3.79737]
[1729606487577,3.79672,2633.9,2633.4,7.59467]
[1729606487822,3.7968,2633.8,2633.4,3.7973]
[1729606488005,3.79645,2634.1,2633.4,3.7973]
[1729606488226,3.79665,2633.9,2633.4,3.79728]
[1729606488412,3.79665,2633.9,2633.5,3.79717]
[1729606488614,3.79652,2634.0,2633.5,3.79717]
[1729606488816,7.5929,2634.1,2633.5,3.79722]
[1729606489144,3.79658,2634.0,2633.5,3.79722]
[1729606489349,3.79607,2634.3,2633.6,3.79697]
[1729606489649,4.58243,2634.4,2633.6,3.79708]
[1729606489938,3.79623,2634.2,2633.7,3.79689]
[1729606490145,3.79623,2634.2,2633.6,3.79701]
[1729606490303,3.79637,2634.1,2633.6,3.79701]
[1729606490501,3.79622,2634.2,2633.7,3.79692]
[1729606490742,7.59251,2634.2,2633.7,3.79692]
[1729606491624,3.79622,2634.2,2633.7,4.556284]
[1729606491822,4.58255,2634.4,2633.7,4.556284]
[1729606492027,3.79586,2634.5,2633.8,0.86033393]
[1729606492208,0.7766,2634.7,2633.8,0.86033393]
[1729606492209,0.7766,2634.7,2634.1,3.79622]
[1729606492412,4.57169,2635.0,2634.3,3.79596]
[1729606492651,3.79521,2634.9,2634.4,3.84182713]
[1729606492955,3.79487,2635.2,2634.5,3.7957]
[1729606493108,3.79498,2635.1,2634.6,3.79557]
[1729606493305,8.12279733,2635.8,2634.6,3.79557]
[1729606493306,4.58547,2635.7,2635.1,3.79485]
[1729606493556,3.7943,2635.6,2635.2,3.79476]
[1729606493719,3.79418,2635.7,2635.2,3.84013336]
[1729606493910,3.79391,2635.8,2635.3,3.79455]
[1729606494234,3.79394,2635.8,2635.4,0.04508442]
[1729606494475,3.79388,2635.9,2635.4,0.04508442]
[1729606494637,4.54864,2636.0,2635.4,0.04508442]
[1729606494879,4.54864,2636.0,2635.4,3.83950442]
[1729606495153,3.79364,2636.0,2635.5,0.796]
[1729606495309,3.79338,2636.2,2635.5,0.796]
[1729606495511,3.79338,2636.2,2635.6,0.04470889]
[1729606495711,3.79357,2636.1,2635.6,0.04470889]
[1729606496141,3.79372,2636.0,2635.6,0.04470889]
[1729606497426,3.79378,2635.9,2635.6,0.04470889]
[1729606497837,3.79378,2635.9,2635.3,3.79462]
[1729606498026,3.79378,2635.9,2635.4,0.04486778]
[1729606498363,3.7943,2635.6,2635.4,0.04486778]
[1729606498531,3.79434,2635.5,2635.4,0.04486778]
[1729606498727,0.8006,2635.8,2635.0,0.7978]
[1729606498728,4.59456,2635.8,2635.0,0.7978]
[1729606498928,3.79478,2635.2,2634.7,0.7978]
[1729606499128,3.79455,2635.4,2634.7,4.59329]
[1729606499329,3.79471,2635.3,2634.7,4.59329]
[1729606499744,3.79502,2635.1,2634.7,0.7978]
[1729606499955,3.79506,2635.0,2634.3,0.7978]
[1729606500126,3.79561,2634.7,2634.3,0.7978]
[1729606500326,3.79616,2634.3,2633.9,0.7978]
[1729606500559,4.32874733,2634.9,2633.9,0.7978]
[1729606500766,4.59557,2635.1,2634.0,3.87233308]
[1729606501060,0.8006,2635.1,2634.0,0.46701331]
[1729606501270,3.79554,2634.7,2634.0,0.54293519]
[1729606501560,3.79564,2634.6,2634.0,3.79648]
[1729606501768,3.79586,2634.5,2633.9,4.59441]
[1729606501968,3.7965,2634.0,2633.5,0.8006]
[1729606502171,4.32874733,2634.3,2633.1,0.8161]
[1729606502478,4.32874733,2634.3,2633.1,5.15115347]
[1729606502479,3.79699,2633.7,2633.1,5.15115347]
[1729606502673,3.79672,2633.9,2633.2,0.07594743]
[1729606502852,3.79624,2634.2,2633.6,3.79701]
[1729606503025,3.79628,2634.2,2633.7,0.8161]
[1729606503423,0.7745,2634.3,2633.7,0.8161]
[1729606503675,0.7827,2634.7,2633.8,0.07593514]
[1729606503825,3.7956,2634.7,2634.1,3.79628]
[1729606504167,3.7956,2634.7,2633.8,0.97771639]
[1729606504168,3.7956,2634.7,2633.9,3.79656]
[1729606504335,3.7956,2634.7,2634.0,4.63175087]
[1729606504539,3.79506,2635.0,2634.2,3.79621]
[1729606504773,4.57767,2635.1,2634.1,3.79633]
[1729606504774,4.57767,2635.1,2634.3,0.07591219]
[1729606505072,4.57767,2635.1,2634.1,3.79628]
[1729606505073,3.79506,2635.0,2634.1,3.79628]
[1729606505271,3.79506,2635.0,2634.2,0.88844273]
[1729606505423,3.79506,2635.0,2634.2,4.68455273]
[1729606505622,3.79522,2634.9,2634.2,4.68455273]
[1729606505824,3.79544,2634.8,2634.2,0.88844273]
[1729606506074,0.7827,2635.1,2634.0,0.7594]
[1729606506327,3.79547,2634.8,2634.1,3.87225485]
[1729606506568,3.7956,2634.7,2634.0,0.7594]
[1729606506734,3.7958,2634.5,2634.0,0.7594]
[1729606507184,3.7956,2634.7,2634.0,0.7594]
[1729606507587,3.7953,2634.9,2634.1,3.79625]
[1729606507787,3.79488,2635.2,2634.4,0.8326]
[1729606508104,0.01,2635.7,2634.4,0.8326]
[1729606508105,3.79445,2635.5,2634.5,0.0759072]
[1729606508435,3.79387,2635.9,2635.0,0.55]
[1729606508723,3.79362,2636.1,2635.1,0.88028216]
[1729606508888,3.79372,2636.0,2635.3,3.79456]
[1729606509093,3.79372,2636.0,2635.4,0.379456]
[1729606509419,3.79372,2636.0,2635.4,0.45533711]
[1729606509573,7.58746,2636.0,2635.4,0.379456]
[1729606509780,3.79448,2635.5,2635.1,0.8044]
[1729606509975,3.79473,2635.3,2634.7,0.7858]
[1729606510316,3.79522,2634.9,2634.7,0.7858]
[1729606510519,5.15134733,2635.6,2634.0,4.79193131]
[1729606510520,3.79558,2634.7,2634.4,0.7905]
[1729606510942,3.79616,2634.3,2634.0,0.7859]
[1729606511154,4.57157,2636.4,2634.8,0.7859]
[1729606511437,0.7785,2636.4,2635.5,0.7859]
[1729606511640,3.79326,2636.3,2635.5,4.58012]
[1729606512142,3.79326,2636.3,2635.5,0.7859]
[1729606512345,3.79326,2636.3,2635.5,4.58017]
[1729606512545,3.79326,2636.3,2635.5,0.7859]
[1729606512853,3.79327,2636.3,2635.6,1.27033773]
[1729606513009,0.8137,2636.9,2635.7,4.40462259]
[1729606513200,0.8137,2636.9,2635.7,8.19856259]
[1729606513395,3.79276,2636.6,2635.8,0.07587037]
[1729606513598,4.60609,2636.9,2635.8,4.68959614]
[1729606513796,4.60609,2636.9,2636.0,3.7936]
[1729606513797,3.79255,2636.8,2636.0,3.7936]
[1729606514038,4.60609,2636.9,2635.9,0.79374039]
[1729606514039,3.79293,2636.5,2636.1,0.04219498]
[1729606514242,0.8137,2636.9,2635.9,4.62091928]
[1729606514243,3.79271,2636.7,2635.9,4.62091928]
[1729606514746,3.79271,2636.7,2636.0,0.04227439]
[1729606515299,3.79276,2636.6,2636.0,0.04227439]
[1729606515536,4.60612,2636.9,2636.1,3.79337]
[1729606515836,4.60612,2636.9,2636.2,0.04211557]
[1729606515837,3.79233,2636.9,2636.2,0.04211557]
[1729606515996,3.79243,2636.9,2636.2,0.04211557]
[1729606516504,3.79243,2636.9,2635.9,4.54497]
[1729606516505,3.79287,2636.6,2635.9,0.7513]
[1729606516816,5.13194733,2637.2,2635.9,0.7513]
[1729606516817,7.58509,2636.8,2636.0,3.79353]
[1729606517010,7.58509,2636.8,2636.1,0.04135637]
[1729606517011,3.79254,2636.8,2636.1,0.04135637]
[1729606517211,3.79291,2636.5,2635.9,1.205833]
[1729606517414,3.79262,2636.7,2636.0,0.04142004]
[1729606517702,3.79255,2636.8,2636.1,3.79339]
[1729606517898,3.79255,2636.8,2636.1,7.5868]
[1729606518137,3.79279,2636.6,2636.2,0.04124943]
[1729606518294,3.79206,2637.1,2636.2,0.04124943]
[1729606518295,4.57592,2636.4,2636.2,0.04124943]
[1729606518501,4.57592,2636.4,2635.6,3.79416]
[1729606518502,3.79329,2636.3,2635.6,4.58396]
[1729606518848,4.57592,2636.4,2635.6,0.7898]
[1729606518849,3.79334,2636.2,2635.6,0.7898]
[1729606519300,4.57595,2636.4,2635.7,3.79397]
[1729606519634,3.79286,2636.6,2635.7,3.79397]
[1729606519635,3.79284,2636.6,2635.7,4.24936559]
[1729606519837,3.79284,2636.6,2635.7,0.45539559]
[1729606520048,3.79257,2636.8,2635.7,0.45539559]
[1729606520049,3.79257,2636.8,2636.2,4.59466]
[1729606520256,3.79257,2636.8,2636.0,3.79352]
[1729606520413,3.79261,2636.7,2636.0,3.79352]
[1729606520594,3.79257,2636.8,2636.1,3.79341]
[1729606520806,0.7544,2637.0,2635.9,0.7884]
[1729606520807,8.13107733,2636.9,2635.9,0.7884]
[1729606521150,3.793,2636.5,2635.9,0.7884]
[1729606521511,3.7929,2636.5,2635.9,0.7884]
[1729606521841,3.79305,2636.4,2635.9,0.7884]
[1729606522010,3.79337,2636.2,2635.9,0.7884]
[1729606522214,3.79355,2636.1,2635.6,0.7884]
[1729606522412,3.79368,2636.0,2635.6,0.7884]
[1729606522813,3.7937,2636.0,2635.6,0.7884]
[1729606523556,3.7937,2636.0,2635.0,3.79503]
[1729606523557,3.79406,2635.7,2634.6,0.8231]
[1729606523703,0.8153,2636.2,2634.9,0.8231]
[1729606523704,3.79348,2636.1,2634.9,0.8231]
[1729606524045,3.79348,2636.1,2635.0,3.79497]
[1729606524046,3.79433,2635.6,2635.0,3.79497]
[1729606524352,3.79443,2635.5,2635.0,3.79506]
[1729606524508,3.79433,2635.6,2635.1,7.58974]
[1729606524704,3.7942,2635.6,2635.1,3.79483]
[1729606524904,3.79373,2636.0,2635.1,0.841307]
[1729606525135,0.7782,2637.2,2635.7,0.7883]
[1729606525322,3.79255,2636.8,2636.3,0.7883]